bitfinex/quotes_BTCUSD_20250110
["timestamp","ask_amount","ask_price","bid_price","bid_amount"]
[1736536798823,0.09984081,95004.0,94981.0,0.0001704]
[1736536799019,0.21055,94989.0,94981.0,0.0001704]
[1736536799235,0.24049056,94989.0,94981.0,0.0001704]
[1736536799451,0.27019751,94989.0,94981.0,0.0001704]
[1736536800055,0.39749727,94989.0,94981.0,0.0001704]
[1736536800472,0.64733808,94989.0,94981.0,0.0001704]
[1736536800876,0.59830055,94989.0,94981.0,0.0001704]
[1736536801296,0.6280075,94989.0,94981.0,0.0001704]
[1736536801480,0.65794806,94989.0,94981.0,0.0001704]
[1736536802676,0.66294806,94989.0,94981.0,0.0001704]
[1736536803086,0.66494806,94989.0,94981.0,0.0001704]
[1736536803279,0.65994806,94989.0,94981.0,0.0001704]
[1736536803481,0.63024111,94989.0,94981.0,0.0001704]
[1736536803655,0.60830055,94989.0,94988.0,0.0011706]
[1736536803856,0.65190813,94989.0,94988.0,0.0011706]
[1736536804059,0.60830055,94989.0,94988.0,0.0011706]
[1736536805174,0.50845974,94989.0,94988.0,0.0011706]
[1736536805376,0.48545974,94989.0,94988.0,0.0011706]
[1736536806017,0.50845974,94989.0,94988.0,0.0011706]
[1736536806219,0.50645974,94989.0,94988.0,0.0011706]
[1736536806640,0.50045974,94989.0,94988.0,0.0001706]
[1736536806861,0.50245974,94989.0,94988.0,0.0001706]
[1736536807293,0.50045974,94989.0,94988.0,0.0001706]
[1736536807870,0.49845974,94989.0,94988.0,0.0001706]
[1736536808285,0.22215998,94989.0,94988.0,0.0001706]
[1736536808502,0.01160998,94989.0,94988.0,0.0001706]
[1736536808909,0.01460998,94989.0,94988.0,0.0001706]
[1736536809131,0.01060998,94989.0,94988.0,0.0001706]
[1736536809332,0.01360998,94989.0,94988.0,0.0001706]
[1736536809534,0.003,94989.0,94988.0,0.0011706]
[1736536809734,0.22117663,94990.0,94988.0,0.0011706]
[1736536809934,0.22117663,94990.0,94988.0,0.0001706]
[1736536810137,0.12729976,94989.0,94988.0,0.0021706]
[1736536810847,0.22117663,94990.0,94988.0,0.0021706]
[1736536811215,0.22117663,94990.0,94988.0,0.0041706]
[1736536811598,0.3293,95019.0,94993.0,0.00015919]
[1736536811953,0.14004514,95035.0,94989.0,0.0811]
[1736536811954,0.09364514,95035.0,95009.0,0.00015919]
[1736536812156,0.10429976,95034.0,95012.0,0.0811]
[1736536812370,0.01039733,95035.0,95017.0,0.00015919]
[1736536812600,0.01039733,95035.0,95027.0,0.00015919]
[1736536812831,0.210402,95056.0,95027.0,0.00015919]
[1736536813052,0.25429976,95055.0,95027.0,0.00015919]
[1736536813259,0.023,95054.0,95032.0,0.210453]
[1736536813455,0.210433,95043.0,95032.0,0.210453]
[1736536814072,0.210426,95045.0,95033.0,0.00015919]
[1736536814475,0.001,95035.0,95033.0,0.00015919]
[1736536814922,0.001,95035.0,95018.0,0.0488]
[1736536815103,0.210478,95022.0,95018.0,0.0488]
[1736536815316,0.21046,95030.0,95013.0,0.00015919]
[1736536815490,0.15,95029.0,95013.0,0.00015919]
[1736536815689,0.210464,95028.0,95009.0,0.00015919]
[1736536815902,0.15,95029.0,95008.0,0.00015919]
[1736536815903,0.210484,95019.0,95008.0,0.00015919]
[1736536816098,0.210477,95023.0,95013.0,0.00015919]
[1736536816259,0.210477,95023.0,95018.0,0.003]
[1736536816679,0.420968,95019.0,95008.0,0.00015919]
[1736536816896,0.210484,95019.0,95009.0,0.00015919]
[1736536817103,0.210484,95019.0,95011.0,0.00015919]
[1736536817306,0.023,95017.0,94989.0,1.5469]
[1736536817512,0.210532,94998.0,94989.0,0.0469]
[1736536817715,0.210532,94998.0,94993.0,0.00015919]
[1736536818138,0.15,95015.0,94990.0,0.00784426]
[1736536818139,0.210546,94991.0,94990.0,0.00784426]
[1736536819108,0.210546,94991.0,94989.0,0.0469]
[1736536819549,0.421092,94991.0,94988.0,0.0001706]
[1736536819734,0.210546,94991.0,94988.0,0.0001706]
[1736536820116,0.421092,94991.0,94988.0,0.0001706]
[1736536820473,0.210546,94991.0,94988.0,0.0001706]
[1736536820680,0.210546,94991.0,94988.0,0.0011706]
[1736536820898,0.01067227,94999.0,94988.0,0.0011706]
[1736536821104,0.210497,95013.0,94990.0,0.00015919]
[1736536821304,0.12685894,95012.0,94990.0,0.00015919]
[1736536821768,0.210534,94997.0,94990.0,0.00215919]
[1736536821939,0.210543,94993.0,94990.0,0.00215919]
[1736536822144,0.210542,94993.0,94988.0,0.0001706]
[1736536822517,0.21055,94989.0,94988.0,0.0001706]
[1736536822893,0.210542,94993.0,94988.0,0.0001706]
[1736536823336,0.210542,94993.0,94988.0,0.0011706]
[1736536823513,0.210534,94997.0,94988.0,0.0011706]
[1736536823717,0.21055,94989.0,94988.0,0.0011706]
[1736536824659,0.21055,94989.0,94988.0,0.0001706]
[1736536825235,0.210537,94995.0,94988.0,0.0001706]
[1736536825429,0.002,94989.0,94988.0,0.08032979]
[1736536825635,0.002,94989.0,94988.0,0.18462955]
[1736536825850,0.1,95041.0,95010.0,0.00015919]
[1736536826045,0.10429976,95040.0,95014.0,0.00015919]
[1736536826222,0.210442,95038.0,95023.0,0.00015919]
[1736536826593,0.210444,95037.0,95028.0,0.00015919]
[1736536826766,0.210442,95038.0,95028.0,0.00015919]
[1736536826767,0.210456,95032.0,95028.0,0.00015919]
[1736536826978,0.210446,95036.0,95028.0,0.00015919]
[1736536828177,0.210446,95036.0,95028.0,0.00215919]
[1736536828336,0.210455,95032.0,95028.0,0.00215919]
[1736536828922,0.420911,95032.0,95028.0,0.002]
[1736536829131,0.210455,95032.0,95028.0,0.002]
[1736536829594,0.210455,95032.0,95028.0,0.004]
[1736536830257,0.210455,95032.0,95028.0,0.002]
[1736536830258,0.420911,95032.0,95028.0,0.002]
[1736536830649,0.420911,95032.0,95028.0,0.006]
[1736536830857,0.420911,95032.0,95028.0,0.002]
[1736536831265,0.15,95029.0,95028.0,0.004]
[1736536831476,0.45654057,95029.0,95028.0,0.002]
[1736536831705,0.45910423,95029.0,95028.0,0.002]
[1736536831906,0.45910423,95029.0,94989.0,0.0755]
[1736536831907,0.210541,94993.0,94989.0,0.0755]
[1736536832248,0.210541,94993.0,94988.0,0.0457706]
[1736536832249,0.210538,94995.0,94992.0,0.00015919]
[1736536832447,0.21055,94990.0,94988.0,0.0457706]
[1736536832656,0.21047736,94990.0,94988.0,0.0457706]
[1736536832833,0.210538,94995.0,94988.0,0.0457706]
[1736536833035,0.210548,94990.0,94988.0,0.0457706]
[1736536833492,0.12729976,94989.0,94988.0,0.0001706]
[1736536833620,0.12729976,94989.0,94988.0,0.0021706]
[1736536833819,0.27729976,94989.0,94988.0,0.0021706]
[1736536834037,0.27729976,94989.0,94988.0,6e-07]
[1736536834244,0.37714057,94989.0,94988.0,6e-07]
[1736536834453,0.360557,94986.0,94985.0,0.0001706]
[1736536834654,0.48785676,94986.0,94985.0,0.0001706]
[1736536835695,0.58769757,94986.0,94985.0,0.0001706]
[1736536836141,0.210566,94982.0,94981.0,4e-07]
[1736536836349,0.58770657,94982.0,94981.0,4e-07]
[1736536837844,0.59670657,94982.0,94981.0,0.0010004]
[1736536838023,0.58770657,94982.0,94981.0,4e-07]
[1736536838223,0.59822921,94982.0,94981.0,4e-07]
[1736536838424,0.70722921,94982.0,94981.0,0.0010004]
[1736536838626,0.69822921,94982.0,94981.0,4e-07]
[1736536839928,0.70422921,94982.0,94981.0,0.0010004]
[1736536840356,0.70722921,94982.0,94981.0,0.0010004]
[1736536840558,0.5983884,94982.0,94981.0,4e-07]
[1736536840761,0.6023884,94982.0,94981.0,4e-07]
[1736536840985,0.6113884,94982.0,94981.0,0.0010004]
[1736536841193,0.70222921,94982.0,94981.0,4e-07]
[1736536841602,0.71122921,94982.0,94981.0,0.0010004]
[1736536841928,0.6023884,94982.0,94981.0,4e-07]
[1736536842133,0.4793884,94982.0,94981.0,4e-07]
[1736536842318,0.4793884,94982.0,94981.0,0.0010004]
[1736536842319,0.4883884,94982.0,94981.0,0.0010004]
[1736536842520,0.5073884,94982.0,94981.0,0.0010004]
[1736536842722,0.4843884,94982.0,94981.0,0.0010004]
[1736536843188,0.4893884,94982.0,94981.0,0.0010004]
[1736536843357,0.5123884,94982.0,94981.0,0.0010004]
[1736536843575,0.5123884,94982.0,94981.0,4e-07]
[1736536843576,0.4983884,94982.0,94981.0,4e-07]
[1736536843996,0.70822921,94982.0,94981.0,0.0010004]
[1736536844454,0.70822921,94982.0,94950.0,0.0001706]
[1736536844455,0.360612,94961.0,94950.0,0.0001706]
[1736536844708,0.49619176,94961.0,94950.0,0.0001706]
[1736536846811,0.49819176,94961.0,94950.0,0.0001706]
[1736536847023,0.50143754,94961.0,94950.0,0.0001706]
[1736536847238,0.36385778,94961.0,94950.0,0.0001706]
[1736536847451,0.37285778,94961.0,94960.0,0.0011706]
[1736536847656,0.01424578,94961.0,94960.0,0.0011706]
[1736536847848,0.00524578,94961.0,94960.0,0.00032979]
[1736536848091,0.01124578,94961.0,94960.0,0.00132979]
[1736536848304,0.008,94961.0,94960.0,0.00132979]
[1736536848521,0.002,94961.0,94960.0,0.00032979]
[1736536848903,0.003,94961.0,94960.0,0.00032979]
[1736536849109,0.002,94961.0,94960.0,0.00032979]
[1736536849325,0.002,94961.0,94960.0,0.04762979]
[1736536849483,0.001,94961.0,94960.0,0.05262979]
[1736536849719,0.003,94961.0,94960.0,0.13111222]
[1736536849910,0.003,94961.0,94960.0,1.63111222]
[1736536850289,0.001,94961.0,94960.0,1.63111222]
[1736536850916,0.001,94961.0,94960.0,1.63411222]
[1736536851901,0.001,94961.0,94960.0,1.73841198]
[1736536854358,0.001,94961.0,94960.0,1.63411222]
[1736536856667,0.210518,95004.0,94995.0,0.00015919]
[1736536856877,0.210495,95014.0,95002.0,0.00015919]
[1736536857094,0.00307352,95003.0,95002.0,0.00015919]
[1736536857288,8.54e-05,95009.0,95007.0,0.00015919]
[1736536857495,8.54e-05,95009.0,95003.0,0.210519]
[1736536857496,8.54e-05,95009.0,95008.0,0.00015919]
[1736536857702,8.54e-05,95009.0,95008.0,0.04238327]
[1736536857901,8.54e-05,95009.0,95008.0,1.50015919]
[1736536859334,0.210508,95008.0,95002.0,0.00015919]
[1736536859535,0.005,95004.0,94993.0,0.00015919]
[1736536859756,0.005,95004.0,95000.0,0.00015919]
[1736536860152,0.00311469,95003.0,95000.0,0.00015919]
[1736536860287,0.005,95004.0,95000.0,0.00015919]
[1736536860516,0.210522,95002.0,95000.0,0.00015919]
[1736536860720,0.00311218,95001.0,94993.0,0.00015919]
[1736536860941,0.00311218,95001.0,94990.0,0.00015919]
[1736536861163,0.210526,95000.0,94995.0,0.00015919]
[1736536861367,0.00309818,94999.0,94998.0,0.00015919]
[1736536861566,8.54e-05,95009.0,94998.0,0.00015919]
[1736536861855,8.54e-05,95009.0,95008.0,0.00215919]
[1736536862077,8.54e-05,95009.0,95008.0,0.10645895]
[1736536862298,8.54e-05,95009.0,95008.0,0.17264546]
[1736536863016,8.54e-05,95009.0,95008.0,0.00015919]
[1736536863204,8.54e-05,95009.0,95008.0,0.00121167]
[1736536863419,8.54e-05,95009.0,95008.0,0.10445895]
[1736536863919,8.54e-05,95009.0,95006.0,0.0476]
[1736536864116,8.54e-05,95009.0,95008.0,0.007]
[1736536864549,8.54e-05,95009.0,95008.0,0.005]
[1736536864911,8.54e-05,95009.0,95008.0,0.009]
[1736536866281,8.54e-05,95009.0,95008.0,0.005]
[1736536866596,8.54e-05,95009.0,95008.0,0.001]
[1736536867001,0.0010854,95009.0,95008.0,0.009]
[1736536867409,0.0030854,95009.0,95008.0,0.009]
[1736536867854,8.54e-05,95009.0,94993.0,0.00015919]
[1736536868300,0.210539,94994.0,94993.0,0.00015919]
[1736536868651,0.210547,94991.0,94986.0,0.00015919]
[1736536868896,0.210559,94985.0,94983.0,1.5]
[1736536869495,0.00308627,94984.0,94983.0,1.5]
[1736536870754,0.00308627,94984.0,94983.0,1.502]
[1736536871153,0.01358204,94984.0,94983.0,0.002]
[1736536871347,0.00308627,94984.0,94983.0,0.002]
[1736536871552,0.00408627,94984.0,94983.0,0.00215919]
[1736536872355,0.00408627,94984.0,94983.0,1.50215919]
[1736536872671,0.00408627,94984.0,94983.0,1.50015919]
[1736536872672,0.001,94984.0,94983.0,1.50015919]
[1736536872872,0.004,94984.0,94983.0,1.50015919]
[1736536873075,0.210524,95001.0,94994.0,0.00015919]
[1736536873475,0.210534,94997.0,94994.0,0.00015919]
[1736536873684,0.00310028,95000.0,94983.0,1.502]
[1736536873886,0.2105,95012.0,94977.0,0.00015919]
[1736536873887,0.023,94995.0,94977.0,0.00015919]
[1736536874071,0.210573,94979.0,94977.0,0.00015919]
[1736536874480,0.00308426,94978.0,94977.0,0.00015919]
[1736536874923,0.210574,94979.0,94977.0,0.00015919]
[1736536875114,0.00307546,94978.0,94977.0,0.00015919]
[1736536875314,0.00307546,94978.0,94977.0,0.10445895]
[1736536875542,0.001,94995.0,94994.0,0.00015919]
[1736536875747,0.210539,94994.0,94988.0,0.00015919]
[1736536875911,0.00407872,94995.0,94988.0,1.5]
[1736536876088,0.210547,94991.0,94988.0,1.5]
[1736536876700,0.0210547,94991.0,94981.0,0.00015919]
[1736536876887,0.01040924,95001.0,94988.0,0.00015919]
[1736536877097,0.00307889,94990.0,94989.0,0.10445895]
[1736536877291,0.210508,95008.0,95003.0,0.00015919]
[1736536877503,0.210508,95008.0,95004.0,0.00015919]
[1736536877710,0.00310529,95007.0,95004.0,0.00015919]
[1736536877914,0.210513,95006.0,95004.0,0.00015919]
[1736536879467,0.210524,95001.0,95000.0,0.00015919]
[1736536879647,0.421026,95006.0,95000.0,0.00015919]
[1736536879867,0.00309775,95001.0,95000.0,0.00015919]
[1736536880065,0.421026,95006.0,95000.0,0.00015919]
[1736536880271,0.00309775,95001.0,95000.0,0.00015919]
[1736536880474,0.421026,95006.0,95000.0,0.00015919]
[1736536880677,0.00309775,95001.0,95000.0,0.00115919]
[1736536880885,0.210513,95006.0,95000.0,0.00115919]
[1736536881191,0.21052,95003.0,95000.0,0.00115919]
[1736536881402,0.21052,95003.0,94998.0,1.5]
[1736536881403,0.00309901,95002.0,94999.0,0.00015919]
[1736536881542,0.210524,95001.0,94999.0,0.00015919]
[1736536881748,0.21052,95003.0,94999.0,0.00015919]
[1736536882450,0.210515,95006.0,95005.0,0.00015919]
[1736536882875,0.210508,95008.0,95005.0,0.00015919]
[1736536883078,8.54e-05,95009.0,95008.0,0.00015919]
[1736536884475,8.54e-05,95009.0,95002.0,0.00015919]
[1736536884709,8.54e-05,95009.0,94997.0,0.00015919]
[1736536884904,0.21055,94989.0,94988.0,0.00015919]
[1736536885498,0.210547,94991.0,94988.0,0.00015919]
[1736536886840,0.023,94997.0,94981.0,0.00015919]
[1736536886975,0.10429976,94996.0,94981.0,0.00015919]
[1736536887180,0.210566,94982.0,94981.0,0.00015919]
[1736536889053,0.210566,94982.0,94980.0,1.5]
[1736536889849,0.210566,94982.0,94981.0,0.004]
[1736536890050,0.210566,94982.0,94981.0,0.002]
[1736536890268,0.210562,94984.0,94981.0,0.00215919]
[1736536890476,0.210562,94984.0,94981.0,0.00015919]
[1736536890920,0.10429976,94996.0,94980.0,0.002]
[1736536890921,0.210564,94983.0,94980.0,0.002]
[1736536891130,0.210564,94983.0,94981.0,0.004]
[1736536891316,0.421128,94983.0,94980.0,0.002]
[1736536891708,0.210564,94983.0,94981.0,0.003]
[1736536892112,0.00309593,94982.0,94981.0,0.003]
[1736536893112,0.00309593,94982.0,94981.0,0.004]
[1736536893691,0.00309593,94982.0,94981.0,0.00015919]
[1736536893876,0.00309593,94982.0,94981.0,0.21318553]
[1736536894124,0.21051,95008.0,95004.0,0.00015919]
[1736536894511,0.00285709,95007.0,95004.0,0.00015919]
[1736536894861,0.210513,95006.0,95004.0,0.00015919]
[1736536895084,0.00285709,95007.0,94986.0,0.210555]
[1736536895260,0.21337362,95005.0,95004.0,0.00015919]
[1736536895439,0.210509,95008.0,94990.0,0.210546]
[1736536895440,0.210509,95008.0,94998.0,0.00015919]
[1736536895649,0.00286114,95007.0,94987.0,0.05006004]
[1736536895852,0.15,95007.0,94995.0,0.00015919]
[1736536896053,0.210535,94996.0,94995.0,0.00015919]
[1736536896268,0.210535,94996.0,94991.0,1.5]
[1736536896469,0.210544,94992.0,94991.0,1.5]
[1736536896884,0.00286116,94992.0,94991.0,1.50015919]
[1736536897217,0.210517,95004.0,95001.0,0.00015919]
[1736536897434,0.002,95007.0,95006.0,0.00015919]
[1736536897634,0.210492,95016.0,95006.0,0.00015919]
[1736536898042,0.2105914,95009.0,95006.0,0.00015919]
[1736536898591,0.003,95007.0,95006.0,0.00015919]
[1736536899210,0.2085844,95013.0,95006.0,0.00015919]
[1736536899590,0.001,95007.0,95002.0,0.20958019]
[1736536900031,0.2085844,95013.0,95002.0,0.20958019]
[1736536900442,0.2085844,95013.0,95002.0,0.26276781]
[1736536900653,0.210473,95025.0,95004.0,0.210517]
[1736536900858,0.210465,95028.0,95005.0,0.10429976]
[1736536901104,0.15,95027.0,95005.0,0.10429976]
[1736536901310,0.360466,95027.0,95015.0,0.210492]
[1736536901502,0.01035588,95033.0,95006.0,0.03896622]
[1736536901711,0.01035588,95033.0,95018.0,0.210485]
[1736536901861,8.54e-05,95048.0,95019.0,0.18679976]
[1736536902063,0.210439,95039.0,95020.0,0.210482]
[1736536902279,0.210439,95039.0,95024.0,0.210472]
[1736536902478,0.21045,95035.0,95025.0,0.06077538]
[1736536902799,0.001,95028.0,95025.0,1.5]
[1736536903378,0.003,95027.0,95025.0,1.5]
[1736536903583,0.10429976,95026.0,95017.0,0.0078489]
[1736536903783,0.210486,95018.0,95000.0,0.210524]
[1736536903989,0.210488,95017.0,95001.0,0.2648096]
[1736536904161,0.210498,95013.0,94997.0,0.210532]
[1736536904361,0.210499,95012.0,94996.0,0.1218]
[1736536904516,0.21337768,95012.0,94998.0,0.21053]
[1736536904746,0.00287868,95012.0,94996.0,0.1218]
[1736536905112,0.21051,95008.0,94996.0,0.0462]
[1736536905316,0.21051,95008.0,95001.0,0.002]
[1736536905506,0.00290509,95007.0,95001.0,0.002]
[1736536906088,0.21051,95008.0,95001.0,0.002]
[1736536906492,0.21051,95008.0,94996.0,1.5]
[1736536906693,0.42102,95008.0,94997.0,0.10429976]
[1736536906895,0.10429976,95008.0,95001.0,0.001]
[1736536907059,0.210521,95002.0,95001.0,0.001]
[1736536907303,0.210546,94991.0,94979.0,1.5]
[1736536907509,0.21340456,95002.0,95001.0,0.001]
[1736536907711,0.210521,95002.0,95001.0,0.001]
[1736536907957,0.21054,94994.0,94980.0,0.21057]
[1736536908162,0.210533,94997.0,94981.0,1.56292025]
[1736536908497,0.210548,94991.0,94981.0,1.56292025]
[1736536908697,0.078,95005.0,94981.0,1.5]
[1736536908698,0.10429976,94996.0,94981.0,1.5]
[1736536908878,0.210563,94984.0,94981.0,1.5]
[1736536909687,0.10429976,94996.0,94960.0,0.0001706]
[1736536909688,0.210563,94983.0,94960.0,0.2107846]
[1736536909888,0.210587,94973.0,94960.0,0.2107846]
[1736536910299,0.21059,94971.0,94961.0,1.5]
[1736536910502,0.00283467,94972.0,94961.0,1.5]
[1736536910680,0.00283971,94970.0,94960.0,0.0001706]
[1736536910883,0.01071395,94969.0,94960.0,0.0001706]
[1736536911081,0.21061,94962.0,94960.0,0.0001706]
[1736536911548,0.00284046,94961.0,94960.0,0.0001706]
[1736536912939,0.210608,94963.0,94961.0,0.001]
[1736536913589,0.210608,94963.0,94960.0,0.0001706]
[1736536913590,0.210612,94961.0,94960.0,0.0001706]
[1736536913871,0.210612,94961.0,94960.0,0.0011706]
[1736536914213,0.210612,94961.0,94960.0,0.0001706]
[1736536914942,0.21061,94963.0,94960.0,0.0001706]
[1736536915142,0.42122,94963.0,94960.0,0.0001706]
[1736536915757,0.459312,94961.0,94960.0,0.0001706]
[1736536915958,0.54061176,94961.0,94960.0,0.0001706]
[1736536916696,0.46491176,94961.0,94960.0,0.0001706]
[1736536916883,0.21061,94963.0,94960.0,0.0001706]
[1736536917089,0.001,94961.0,94960.0,0.0001706]
[1736536917290,0.002,94961.0,94960.0,1.5001706]
[1736536917702,0.009,94961.0,94960.0,1.5011706]
[1736536918008,0.421218,94963.0,94960.0,1.5001706]
[1736536918218,0.210608,94963.0,94960.0,1.5001706]
[1736536918458,0.00280807,94962.0,94960.0,1.5001706]
[1736536918684,0.210601,94967.0,94960.0,1.5001706]
[1736536918894,0.21061,94963.0,94960.0,1.5001706]
[1736536919318,0.00280807,94962.0,94960.0,1.5001706]
[1736536919741,0.21061,94963.0,94960.0,1.5001706]
[1736536919994,0.00280681,94961.0,94960.0,1.5001706]
[1736536920215,0.3293,94966.0,94960.0,1.60447036]
[1736536920421,0.210603,94965.0,94960.0,1.60447036]
[1736536920626,0.210606,94964.0,94960.0,1.5021706]
[1736536920830,0.210606,94964.0,94960.0,0.0021706]
[1736536921035,0.210606,94964.0,94960.0,0.0011706]
[1736536921234,0.023,94961.0,94960.0,0.0031706]
[1736536921429,0.1301238,94961.0,94960.0,0.0031706]
[1736536921650,0.2801238,94961.0,94960.0,0.0001706]
[1736536922394,0.2821238,94961.0,94960.0,0.0001706]
[1736536922606,0.6114238,94961.0,94960.0,0.0001706]
[1736536922834,0.6891238,94961.0,94960.0,0.0001706]
[1736536923032,0.6974038,94961.0,94960.0,0.0001706]
[1736536923231,0.33412404,94961.0,94960.0,0.0021706]
[1736536923839,0.33412404,94961.0,94960.0,0.0001706]
[1736536924570,0.34365029,94961.0,94960.0,0.0001706]
[1736536924774,0.34565029,94961.0,94960.0,0.0001706]
[1736536925113,0.38725787,94961.0,94960.0,0.0001706]
[1736536925376,0.34565029,94961.0,94960.0,0.0001706]
[1736536926172,0.34465029,94961.0,94960.0,0.0001706]
[1736536926410,0.33412404,94961.0,94960.0,0.0001706]
[1736536926586,0.33512404,94961.0,94960.0,0.0001706]
[1736536926995,0.33412404,94961.0,94960.0,1.5001706]
[1736536927199,0.3293,94961.0,94960.0,1.5001706]
[1736536927409,0.3293,94961.0,94960.0,1.68012787]
[1736536927608,0.3293,94961.0,94960.0,1.68812787]
[1736536927609,0.3303,94961.0,94960.0,1.68812787]
[1736536927809,0.3293,94961.0,94960.0,1.68012787]
[1736536928415,0.3293,94961.0,94960.0,1.70135308]
[1736536928850,0.3303,94961.0,94960.0,1.71035308]
[1736536929627,0.3303,94961.0,94960.0,1.71435308]
[1736536930217,0.3303,94961.0,94960.0,1.5131706]
[1736536930732,0.31304131,94974.0,94960.0,1.61747036]
[1736536930933,0.01059051,94987.0,94968.0,0.1]
[1736536931135,0.31304131,94994.0,94989.0,0.210548]
[1736536931448,0.00403964,94993.0,94990.0,1.5]
[1736536931653,0.210521,95002.0,94991.0,0.10429976]
[1736536932272,0.210521,95002.0,94990.0,1.5]
[1736536932475,0.023,94999.0,94960.0,0.0001706]
[1736536932682,0.10839587,94998.0,94970.0,0.210592]
[1736536932887,0.210559,94986.0,94970.0,0.210592]
[1736536933081,0.210559,94986.0,94973.0,0.02130745]
[1736536933287,0.00407161,94985.0,94974.0,0.10429976]
[1736536934096,0.210567,94982.0,94974.0,0.10429976]
[1736536934271,0.21457541,94984.0,94974.0,0.10429976]
[1736536935059,0.21457541,94984.0,94974.0,0.10529976]
[1736536935254,0.00401241,94984.0,94975.0,0.210581]
[1736536935459,0.01051866,94989.0,94976.0,0.03158808]
[1736536935460,0.22106966,94989.0,94976.0,0.03158808]
[1736536935731,0.210565,94983.0,94968.0,1.5]
[1736536935901,0.00407726,94988.0,94974.0,0.001]
[1736536936260,0.210555,94987.0,94974.0,0.001]
[1736536936474,0.210573,94979.0,94974.0,0.001]
[1736536936695,0.023,94995.0,94974.0,0.001]
[1736536936926,0.210532,94997.0,94975.0,0.10429976]
[1736536937139,0.00408857,94994.0,94977.0,0.0472]
[1736536937336,0.31304131,95016.0,94993.0,0.421082]
[1736536937337,0.00409234,94996.0,94993.0,0.421082]
[1736536937478,0.210493,95015.0,95002.0,0.210519]
[1736536937684,0.210493,95015.0,95003.0,1.5]
[1736536937685,0.00376421,95014.0,95003.0,1.5]
[1736536937894,0.210493,95015.0,95004.0,0.10429976]
[1736536938267,0.31304131,95016.0,95004.0,0.10429976]
[1736536938403,0.210493,95015.0,95004.0,0.10429976]
[1736536938588,0.00375408,95014.0,95004.0,0.20965209]
[1736536938812,0.210472,95025.0,95004.0,0.20859952]
[1736536939023,0.210472,95025.0,95009.0,0.210506]
[1736536939245,0.31304131,95034.0,95005.0,0.10429976]
[1736536939246,0.210475,95023.0,95005.0,0.10429976]
[1736536939461,0.173,95021.0,95003.0,1.5]
[1736536939661,0.1,95032.0,94973.0,0.1]
[1736536939662,0.210515,95005.0,94989.0,0.21055]
[1736536939935,0.210515,95005.0,95004.0,0.001]
[1736536940120,0.10429976,95020.0,94991.0,1.5]
[1736536940327,0.01867078,95035.0,94992.0,0.10429976]
[1736536940648,0.210488,95018.0,95005.0,0.210514]
[1736536940980,0.32383551,95034.0,95007.0,0.21051]
[1736536941184,0.210453,95033.0,95008.0,0.20859952]
[1736536941393,0.001,95020.0,95015.0,0.210492]
[1736536941822,0.001,95020.0,95016.0,1.5]
[1736536942357,0.001,95020.0,95018.0,0.0825]
[1736536942544,0.001,95020.0,95019.0,0.31478376]
[1736536943287,0.210445,95037.0,95025.0,0.210469]
[1736536943496,0.001,95034.0,95026.0,0.05252508]
[1736536943705,0.001,95034.0,95025.0,0.210469]
[1736536943706,0.210455,95032.0,95014.0,0.210494]
[1736536943932,0.001,95034.0,95017.0,0.210488]
[1736536944133,0.001,95034.0,95021.0,0.210479]
[1736536944304,0.001,95034.0,95026.0,0.210467]
[1736536944506,0.210442,95038.0,95026.0,0.210467]
[1736536944711,0.210442,95038.0,95027.0,0.05252438]
[1736536945074,0.210442,95038.0,95026.0,0.210467]
[1736536945511,0.210442,95038.0,95022.0,0.210477]
[1736536945716,8.53e-05,95041.0,95019.0,0.004]
[1736536945906,0.210463,95029.0,95019.0,0.004]
[1736536946107,0.210463,95029.0,95025.0,0.002]
[1736536946303,0.0037631,95028.0,95025.0,0.002]
[1736536946506,0.0037631,95028.0,95022.0,0.210477]
[1736536946712,0.21045,95035.0,95023.0,0.01790568]
[1736536946919,0.21045,95035.0,95022.0,0.210477]
[1736536947125,0.00376388,95034.0,95023.0,1.5]
[1736536947525,0.2105234,95040.0,95023.0,1.5]
[1736536947855,0.00378854,95039.0,95023.0,1.5]
[1736536948078,0.2105234,95040.0,95028.0,0.210462]
[1736536948285,8.54e-05,95040.0,95034.0,0.210449]
[1736536948613,8.54e-05,95040.0,95029.0,0.10429976]
[1736536948842,8.54e-05,95040.0,95031.0,0.210457]
[1736536949060,8.54e-05,95040.0,95032.0,0.210455]
[1736536949266,0.00378516,95039.0,95033.0,0.05252118]
[1736536949454,8.54e-05,95040.0,95031.0,0.210457]
[1736536949641,8.54e-05,95040.0,95029.0,0.10429976]
[1736536949642,0.00378328,95038.0,95034.0,0.002]
[1736536949967,0.0037814,95037.0,95034.0,0.002]
[1736536950382,8.54e-05,95040.0,95034.0,0.002]
[1736536950541,0.00377951,95036.0,95035.0,0.0337864]
[1736536950739,8.54e-05,95040.0,95035.0,0.0337864]
[1736536950949,8.54e-05,95040.0,95032.0,0.002]
[1736536950950,0.210446,95036.0,95032.0,0.002]
[1736536951388,0.210446,95036.0,95034.0,0.001]
[1736536951389,0.21426728,95035.0,95034.0,0.001]
[1736536953116,0.22507326,95035.0,95034.0,0.004]
[1736536953314,0.22507326,95035.0,95014.0,0.02077443]
[1736536953315,0.01462426,95035.0,95014.0,0.02077443]
[1736536953783,0.210481,95021.0,95014.0,0.02077443]
[1736536953986,0.210481,95021.0,95015.0,0.02312754]
[1736536954189,0.003775,95020.0,95015.0,0.02312754]
[1736536954534,0.210468,95026.0,95016.0,0.21049]
[1736536954729,0.00381001,95019.0,95016.0,0.21049]
[1736536954934,0.210479,95022.0,95015.0,0.02312754]
[1736536955178,0.210479,95022.0,95016.0,0.0254404]
[1736536955356,0.003775,95021.0,95016.0,0.0254404]
[1736536955973,0.01080598,95035.0,95016.0,0.12974016]
[1736536956313,0.210459,95031.0,95016.0,0.12974016]
[1736536956593,0.0038067,95030.0,95017.0,1.5]
[1736536956818,0.0038067,95030.0,95018.0,0.10429976]
[1736536957035,0.210462,95029.0,95018.0,0.10429976]
[1736536957211,8.53e-05,95041.0,95016.0,0.001]
[1736536957415,0.210466,95027.0,95019.0,1.5]
[1736536957833,0.00382231,95026.0,95019.0,1.5]
[1736536960148,0.210471,95025.0,95019.0,1.5]
[1736536960366,0.210471,95025.0,95020.0,0.10429976]